bitfinex/quotes_ETHUSD_20250525
["timestamp","ask_amount","ask_price","bid_price","bid_amount"]
[1748155943729,3.986,2501.3,2501.2,4.162]
[1748155946850,3.986,2501.3,2501.2,4.163]
[1748155947438,3.986,2501.3,2501.2,12.775]
[1748155947639,4.46263,2501.3,2501.2,12.775]
[1748155948155,5.22013,2501.3,2501.2,12.775]
[1748155949761,3.987,2501.3,2501.2,12.775]
[1748155952432,0.04998106,2501.4,2501.2,12.775]
[1748155952634,3.988,2501.3,2501.2,12.775]
[1748155953126,4.7455,2501.3,2501.2,12.775]
[1748155956133,12.7455,2501.3,2501.2,12.775]
[1748155956834,14.02005,2501.3,2501.2,12.775]
[1748155957531,14.57005,2501.3,2501.2,12.785]
[1748155957727,14.57005,2501.3,2501.2,8.612]
[1748155957931,14.9393574,2501.3,2501.2,12.785]
[1748155958161,11.35821818,2501.3,2501.2,12.785]
[1748155958470,15.34621818,2501.3,2501.2,12.785]
[1748155958967,15.82011105,2501.3,2501.2,12.785]
[1748155961365,15.34621818,2501.3,2501.2,12.785]
[1748155963061,15.9805479,2501.3,2501.2,12.785]
[1748155964108,9.3024,2501.2,2500.3,0.7961]
[1748155964407,8.0,2501.0,2500.4,4.173]
[1748155964579,4.03899412,2500.9,2500.4,4.173]
[1748155965198,4.40830152,2500.9,2500.4,4.173]
[1748155965712,0.7791,2500.8,2500.4,4.173]
[1748155965864,4.0389955,2500.7,2500.4,4.173]
[1748155966670,3.989,2500.7,2500.4,4.173]
[1748155967390,4.3583074,2500.7,2500.5,4.174]
[1748155967597,4.3583074,2500.7,2500.6,8.617]
[1748155969414,4.91948175,2500.7,2500.6,8.617]
[1748155971313,5.46948175,2500.7,2500.6,12.791]
[1748155971674,5.99381426,2500.7,2500.6,12.791]
[1748155971872,5.99381426,2500.7,2500.6,8.617]
[1748155972181,6.77291426,2500.7,2500.6,12.791]
[1748155973016,6.93102629,2500.7,2500.6,12.791]
[1748155974175,14.93102629,2500.7,2500.6,12.791]
[1748155974434,14.88102984,2500.7,2500.6,12.791]
[1748155974647,17.27502984,2500.7,2500.6,12.791]
[1748155974778,16.8085274,2500.7,2500.6,12.791]
[1748155974978,10.89202984,2500.7,2500.6,12.791]
[1748155975177,14.88202984,2500.7,2500.6,12.791]
[1748155975487,6.24958175,2500.7,2500.6,12.791]
[1748155976717,15.62795055,2500.7,2500.6,12.791]
[1748155977279,15.07795055,2500.7,2500.6,12.791]
[1748155981425,15.71163702,2500.7,2500.6,12.791]
[1748155981927,15.71163702,2500.7,2500.6,8.617]
[1748155982074,13.00676578,2500.7,2500.6,12.791]
[1748155982274,20.37307931,2500.7,2500.6,12.791]
[1748155982515,22.76707931,2500.7,2500.6,12.791]
[1748155984022,20.83958175,2500.7,2500.6,12.791]
[1748155984220,15.14,2500.2,2500.1,4.195]
[1748155984427,21.86179756,2500.2,2500.1,4.195]
[1748155984629,15.9443,2500.2,2500.1,4.195]
[1748155984925,15.7383,2500.2,2500.1,4.195]
[1748155985109,13.7136074,2500.2,2500.1,4.195]
[1748155985317,7.32436814,2500.2,2500.1,4.195]
[1748155985688,7.95799233,2500.2,2500.1,4.195]
[1748155986222,4.99293159,2500.2,2500.1,4.195]
[1748155986388,4.99293159,2500.2,2500.1,4.9819]
[1748155986784,4.3593074,2500.2,2500.1,4.195]
[1748155987820,0.3693074,2500.2,2500.1,4.195]
[1748155988027,4.3593074,2500.2,2500.1,4.195]
[1748155988318,4.86360089,2500.2,2500.1,4.195]
[1748155989489,4.86360089,2500.2,2500.1,0.02]
[1748155989730,4.86360089,2500.2,2500.1,4.272]
[1748155990786,4.91360418,2500.2,2500.1,4.272]
[1748155991299,4.86360089,2500.2,2500.1,4.272]
[1748155991717,6.16510089,2500.2,2500.1,4.272]
[1748155992532,6.79872508,2500.2,2500.1,4.272]
[1748155992836,16.776229,2500.2,2500.1,4.272]
[1748155993010,16.72622264,2500.2,2500.1,4.272]
[1748155993814,16.09259845,2500.2,2500.1,4.272]
[1748155995636,14.16510089,2500.2,2500.1,4.272]
[1748155996538,25.93746969,2500.2,2500.1,0.02]
[1748155996849,30.13346969,2500.2,2500.1,4.273]
[1748155998238,0.55,2499.7,2499.1,8.639]
[1748155998540,0.55,2499.5,2499.2,4.253]
[1748155998711,0.47501498,2499.3,2499.2,4.253]
[1748155998911,4.46601498,2499.3,2499.2,4.253]
[1748155999548,4.83532238,2499.3,2499.2,4.253]
[1748156002348,5.65592238,2499.3,2499.2,4.253]
[1748156002547,6.20592238,2499.3,2499.2,4.253]
[1748156002766,7.2497852,2499.3,2499.2,4.253]
[1748156003149,6.77477022,2499.3,2499.2,4.253]
[1748156005773,7.24941443,2499.3,2499.2,4.253]
[1748156005967,18.60530522,2499.3,2499.2,4.253]
[1748156006169,24.62778323,2499.3,2499.2,4.253]
[1748156006333,20.63678323,2499.3,2499.2,4.253]
[1748156006534,24.62878323,2499.3,2499.2,4.253]
[1748156007234,24.15413902,2499.3,2499.2,4.253]
[1748156007576,20.16213902,2499.3,2499.2,4.253]
[1748156007741,22.78353902,2499.3,2499.2,4.253]
[1748156008170,18.79153902,2499.3,2499.2,4.253]
[1748156008476,9.7476762,2499.3,2499.2,4.253]
[1748156008649,13.3703688,2499.3,2499.2,4.253]
[1748156009681,9.3783688,2499.3,2499.2,4.253]
[1748156009831,13.3703688,2499.3,2499.2,5.0395]
[1748156012055,9.3783688,2499.3,2499.2,5.0395]
[1748156012260,13.3703688,2499.3,2499.2,5.0395]
[1748156016537,9.3783688,2499.3,2499.2,5.0395]
[1748156016742,13.3703688,2499.3,2499.2,5.0395]
[1748156017461,14.70740568,2499.3,2499.2,4.253]
[1748156018014,10.71540568,2499.3,2499.2,4.253]
[1748156018184,14.70740568,2499.3,2499.2,4.253]
[1748156019971,15.07867057,2499.3,2499.2,4.253]
[1748156020171,18.36316813,2499.3,2499.2,4.257]
[1748156020549,28.75716813,2499.3,2499.2,4.257]
[1748156021243,28.96052959,2499.3,2499.2,4.257]
[1748156021757,28.75716813,2499.3,2499.2,4.257]
[1748156022289,19.37879933,2499.3,2499.2,4.257]
[1748156023359,16.98479933,2499.3,2499.2,4.257]
[1748156024070,14.25030177,2499.3,2499.2,4.257]
[1748156024397,13.70030177,2499.3,2499.2,4.257]
[1748156024701,16.93189933,2499.3,2499.2,4.257]
[1748156025087,15.00440177,2499.3,2499.2,4.257]
[1748156025394,11.01240177,2499.3,2499.2,4.257]
[1748156025570,13.70030177,2499.3,2499.2,4.257]
[1748156025778,16.17779933,2499.3,2499.2,4.257]
[1748156025980,16.93189933,2499.3,2499.2,4.257]
[1748156028561,0.7541,2499.1,2498.9,4.257]
[1748156028905,0.7541,2499.1,2498.2,0.7612]
[1748156028906,0.55,2498.9,2498.2,0.7612]
[1748156029059,3.992,2498.8,2498.4,0.7612]
[1748156029460,3.992,2498.8,2498.2,1.03726976]
[1748156029710,0.37126489,2498.7,2498.3,4.257]
[1748156029872,3.993,2498.6,2498.3,4.257]
[1748156030507,3.993,2498.5,2498.4,0.7664]
[1748156030694,0.47519723,2498.6,2498.4,1.26874]
[1748156030899,3.993,2498.5,2498.4,1.26874]
[1748156032403,0.47519723,2498.8,2498.5,0.7664]
[1748156032921,3.993,2498.7,2498.5,0.7664]
[1748156034611,0.37129343,2498.9,2498.5,0.7664]
[1748156034966,3.993,2498.8,2498.5,0.7664]
[1748156035368,0.47519723,2499.0,2498.5,0.7664]
[1748156035769,3.993,2498.9,2498.5,0.7664]
[1748156035967,0.47519723,2499.0,2498.7,0.7983]
[1748156036284,0.47519723,2499.0,2498.8,1.92749756]
[1748156036493,0.47519723,2499.0,2498.9,0.7983]
[1748156036671,4.46819723,2499.0,2498.9,1.07087976]
[1748156037334,0.47519723,2499.0,2498.9,1.07087976]
[1748156037530,4.46819723,2499.0,2498.9,1.07087976]
[1748156038233,0.47519723,2499.0,2498.9,1.07087976]
[1748156038433,4.46819723,2499.0,2498.9,1.07087976]
[1748156038940,4.46719723,2499.0,2498.9,1.07087976]
[1748156040433,0.47519723,2499.0,2498.9,1.07087976]
[1748156040739,4.46719723,2499.0,2498.9,1.07087976]
[1748156041110,0.47519723,2499.0,2498.9,1.07087976]
[1748156041343,4.46719723,2499.0,2498.9,1.07087976]
[1748156043716,4.46719723,2499.0,2498.9,0.7983]
[1748156046333,0.47519723,2499.0,2498.9,0.7983]
[1748156046510,4.46719723,2499.0,2498.9,0.7983]
[1748156049354,0.47519723,2499.0,2498.9,0.7983]
[1748156049505,4.46719723,2499.0,2498.9,0.7983]
[1748156050718,4.46619723,2499.0,2498.9,0.7983]
[1748156054134,4.46619723,2499.0,2498.9,9.4203]
[1748156054667,3.991,2499.0,2498.9,10.29742138]
[1748156057165,1.20355354,2500.0,2498.9,18.29742138]
[1748156057471,3.991,2499.9,2499.1,0.8205]
[1748156057670,3.991,2499.8,2499.1,0.8205]
[1748156058232,3.991,2499.7,2499.1,0.8205]
[1748156058431,3.991,2499.7,2499.1,1.32284]
[1748156058655,0.8323,2500.0,2499.1,1.32284]
[1748156058976,3.991,2499.9,2499.1,1.32284]
[1748156059834,0.8323,2500.0,2499.2,0.8059]
[1748156060036,3.991,2499.9,2499.2,0.8059]
[1748156060235,3.991,2499.9,2499.4,0.8059]
[1748156061772,3.991,2499.8,2499.4,0.8059]
[1748156062336,9.3783688,2500.1,2499.4,0.8059]
[1748156062560,3.991,2500.0,2499.4,0.8059]
[1748156062772,0.47519723,2500.3,2499.4,0.8059]
[1748156062972,3.991,2500.2,2499.4,0.8059]
[1748156064476,3.991,2500.1,2499.4,0.8059]
[1748156065772,0.37192157,2500.5,2499.4,0.8059]
[1748156065937,3.991,2500.0,2499.4,0.8059]
[1748156068076,3.991,2499.9,2499.4,0.8059]
[1748156068835,0.7961,2500.6,2499.5,0.55]
[1748156069065,0.47519723,2500.7,2499.6,0.8056]
[1748156069265,0.47519723,2500.8,2499.8,1.3556]
[1748156069475,3.99,2500.7,2500.1,0.55]
[1748156069678,0.47519723,2500.8,2500.3,0.55]
[1748156069851,4.46519723,2500.8,2500.6,0.8056]
[1748156070179,4.46519723,2500.8,2500.7,17.4256]
[1748156070180,3.99,2500.8,2500.7,17.4256]
[1748156070363,3.99,2500.8,2500.7,18.23430138]
[1748156070677,4.01,2500.9,2500.8,8.0]
[1748156070982,0.02,2500.9,2500.8,0.8056]
[1748156071182,0.02,2500.9,2500.8,1.3556]
[1748156071347,3.99,2501.3,2501.0,0.8056]
[1748156071546,2.02083957,2501.9,2501.2,8.0]
[1748156071759,3.99,2501.8,2501.4,0.8056]
[1748156072946,2.02083957,2501.9,2501.4,0.8056]
[1748156073172,3.99,2501.8,2501.4,0.8056]
[1748156074683,0.02,2501.9,2501.4,0.8056]
[1748156074884,4.009,2501.9,2501.4,0.8056]
[1748156075591,3.989,2501.8,2501.4,0.8056]
[1748156075785,3.989,2501.8,2501.5,0.55]
[1748156075942,3.989,2501.8,2501.6,0.8021]
[1748156076147,4.009,2501.9,2501.6,0.8021]
[1748156076646,0.02,2501.9,2501.7,0.55]
[1748156076872,0.02,2501.9,2501.8,13.7011]
[1748156077062,0.02,2501.9,2501.8,14.50980138]
[1748156079374,0.02,2501.9,2501.8,14.97019844]
[1748156079759,0.05,2502.9,2501.9,8.55]
[1748156079966,4.038,2502.9,2502.0,0.754]
[1748156080160,3.988,2502.8,2502.0,0.754]
[1748156080406,0.05,2502.9,2502.0,0.754]
[1748156080407,3.988,2502.7,2502.0,0.754]
[1748156080606,0.05,2502.9,2502.0,0.754]
[1748156080607,0.05,2502.9,2502.2,0.55]
[1748156080902,0.05,2502.9,2502.5,0.754]
[1748156081102,0.05,2502.9,2502.7,0.754]
[1748156081301,0.05,2502.9,2502.8,0.5061]
[1748156084314,0.05,2502.9,2502.8,0.91165944]
[1748156085292,0.05,2502.9,2502.8,1.72005944]
[1748156085708,0.05,2502.9,2502.8,2.27005944]
[1748156087521,0.05,2502.9,2502.8,22.2295]
[1748156089515,0.05,2502.9,2502.8,20.915]
[1748156090394,0.05,2502.9,2502.8,12.915]
[1748156092205,0.05,2502.9,2502.8,8.61]
[1748156092540,0.05,2502.9,2502.8,12.914]
[1748156093450,0.05,2502.9,2502.8,13.6816]
[1748156093640,4.035,2502.9,2502.8,13.6816]
[1748156095399,0.05,2502.9,2502.8,13.6816]
[1748156095561,4.035,2502.9,2502.8,13.6816]
[1748156096283,0.05,2502.9,2502.8,13.6816]
[1748156096481,4.035,2502.9,2502.8,13.6816]
[1748156096931,0.05,2502.9,2502.8,13.6816]
[1748156097129,4.035,2502.9,2502.8,13.6816]
[1748156097861,4.035,2502.9,2502.8,12.914]
[1748156098069,4.035,2502.9,2502.8,20.914]
[1748156098830,4.035,2502.9,2502.8,16.61]
[1748156099166,4.035,2502.9,2502.8,20.914]
[1748156101135,4.035,2502.9,2502.8,16.61]
[1748156101337,5.2369,2502.9,2502.8,12.914]
[1748156104087,5.2369,2502.9,2502.8,8.61]
[1748156104286,5.2369,2502.9,2502.8,12.914]
[1748156104696,5.60797068,2502.9,2502.8,12.914]
[1748156106406,5.20447068,2502.9,2502.8,12.914]
[1748156109406,5.20447068,2502.9,2502.8,12.912]
[1748156112711,4.8334,2502.9,2502.8,12.912]
[1748156114033,5.20476542,2502.9,2502.8,12.912]
[1748156115095,4.8334,2502.9,2502.8,12.912]
[1748156115478,5.31674,2502.9,2502.8,12.912]
[1748156116903,4.8344,2502.9,2502.8,12.912]
[1748156120567,0.8484,2502.9,2502.8,12.912]
[1748156120730,4.8344,2502.9,2502.8,12.912]
[1748156123788,5.2061604,2502.9,2502.8,12.912]
[1748156125682,4.8344,2502.9,2502.8,12.912]
[1748156128445,0.8484,2502.9,2502.8,12.912]
[1748156128644,4.036,2502.9,2502.8,12.912]
[1748156129593,4.40886159,2502.9,2502.8,12.912]
[1748156130096,5.5366644,2502.9,2502.8,12.912]
[1748156130400,16.7776533,2502.9,2502.8,12.912]
[1748156131180,0.55,2502.5,2501.4,0.8221]
[1748156131382,0.7639,2502.2,2501.5,4.302]
[1748156131555,5.05509889,2502.1,2501.5,4.302]
[1748156131751,0.37286159,2502.0,2501.5,4.302]
[1748156131965,3.986,2501.9,2501.5,4.302]
[1748156132783,0.81386589,2501.8,2501.5,4.302]
[1748156132959,0.7639,2501.8,2501.5,4.302]
[1748156133578,1.24388681,2501.8,2501.5,4.302]
[1748156133785,1.29385867,2501.8,2501.5,4.302]
[1748156133985,11.22094757,2501.8,2500.6,0.8221]
[1748156134146,0.7639,2501.7,2500.7,4.303]
[1748156134346,4.03597937,2501.6,2500.7,4.303]
[1748156134547,5.5959571,2501.6,2500.7,5.05600312]
[1748156134843,0.55,2501.4,2500.3,0.8102]
[1748156135047,4.8127,2501.3,2500.4,4.303]
[1748156135462,4.86268592,2501.3,2500.4,4.303]
[1748156135674,4.8127,2501.3,2500.4,4.303]
[1748156136458,0.8267,2501.1,2500.4,4.303]
[1748156136677,0.28037748,2501.0,2500.4,4.303]
[1748156136882,3.987,2500.9,2500.4,4.303]
[1748156137461,0.8267,2500.8,2500.5,12.916]
[1748156138695,0.04999044,2500.7,2500.6,4.304]
[1748156138845,0.87669302,2500.8,2500.6,4.304]
[1748156139046,0.8267,2500.8,2500.6,4.304]
[1748156141385,1.36307,2500.8,2500.6,4.304]
[1748156144485,0.7881,2500.7,2500.6,4.304]
[1748156144668,1.3381,2500.7,2500.6,4.304]
[1748156146557,0.7881,2500.7,2500.6,4.304]
[1748156146895,4.7771,2500.7,2500.6,4.304]
[1748156148758,6.19264688,2500.7,2500.5,8.612]
[1748156148954,0.55,2500.6,2500.5,8.612]
[1748156149269,0.55,2500.6,2500.5,12.94]
[1748156149693,9.9283688,2500.6,2500.5,12.94]
[1748156150809,9.3783688,2500.6,2500.5,12.94]
[1748156151265,13.3673688,2500.6,2500.5,12.94]
[1748156152358,9.3783688,2500.6,2500.5,12.94]
[1748156152563,13.3673688,2500.6,2500.5,12.94]
[1748156156109,9.3783688,2500.6,2500.5,12.94]
[1748156156305,13.3673688,2500.6,2500.5,12.94]
[1748156156610,14.78291568,2500.6,2500.5,12.94]
[1748156157470,13.3673688,2500.6,2500.5,12.94]
[1748156157709,13.3683688,2500.6,2500.5,8.612]
[1748156158007,13.3683688,2500.6,2500.5,12.94]
[1748156161709,13.73903657,2500.6,2500.5,12.94]
[1748156163588,21.73903657,2500.6,2500.5,12.94]
[1748156166168,17.74903657,2500.6,2500.5,12.94]
[1748156166480,21.73903657,2500.6,2500.5,13.7536]
[1748156167377,12.36066777,2500.6,2500.5,13.7536]
[1748156167768,0.37066777,2500.6,2500.5,13.7536]
[1748156168094,4.36066777,2500.6,2500.5,13.7536]
[1748156168470,4.36066777,2500.6,2500.5,9.4256]
[1748156168676,4.36066777,2500.6,2500.5,12.941]
[1748156171818,0.37066777,2500.6,2500.5,12.941]
[1748156172312,4.36066777,2500.6,2500.5,12.941]
[1748156174004,0.37066777,2500.6,2500.5,13.738]
[1748156174206,4.36066777,2500.6,2500.5,13.738]
[1748156174609,3.99,2500.6,2500.5,13.738]
[1748156176306,0.37251541,2501.2,2500.6,0.7584]
[1748156176519,3.989,2501.1,2500.6,0.7584]
[1748156176714,3.989,2501.0,2500.6,0.7584]
[1748156177435,0.37251541,2501.1,2500.6,0.7584]
[1748156177637,3.989,2500.9,2500.6,0.7584]
[1748156178832,9.3783688,2501.4,2500.6,0.7584]
[1748156179040,4.36109227,2501.3,2500.6,0.7584]
[1748156179410,3.989,2501.2,2500.6,0.7584]
[1748156180324,3.989,2501.1,2500.6,0.7584]
[1748156180641,3.989,2501.1,2500.7,0.7873]
[1748156180824,3.989,2501.0,2500.7,0.7873]
[1748156181133,9.3783688,2501.4,2500.9,0.7873]
[1748156181356,3.989,2501.3,2500.9,0.7873]
[1748156182329,3.989,2501.2,2500.9,0.7873]
[1748156183118,3.989,2501.1,2500.9,0.7873]
[1748156183318,3.989,2501.0,2500.9,1.08629713]
[1748156187130,3.989,2501.0,2500.9,0.7873]
[1748156193140,3.989,2501.0,2500.9,5.0763]
[1748156193340,0.37132614,2501.8,2500.9,5.0763]
[1748156193661,3.988,2501.7,2500.9,5.0763]
[1748156197926,3.988,2501.7,2501.0,8.615]
[1748156198128,0.3988,2501.6,2501.0,8.615]
[1748156201346,0.7969,2501.5,2501.0,8.615]
[1748156203468,2.72775576,2501.5,2501.1,4.239]
[1748156203974,0.7969,2501.3,2501.1,4.239]
[1748156204148,4.86769,2501.2,2501.1,4.239]
[1748156204769,5.24016661,2501.2,2501.1,4.239]
[1748156215552,5.79016661,2501.2,2501.0,8.615]
[1748156215768,1.69167661,2501.1,2501.0,8.615]
[1748156215997,1.69167661,2501.1,2501.0,12.854]
[1748156216289,2.41111619,2501.1,2501.0,12.854]
[1748156217093,4.80411619,2501.1,2501.0,12.854]
[1748156217301,2.41111619,2501.1,2501.0,12.854]
[1748156217885,6.40011619,2501.1,2501.0,12.854]
[1748156218360,5.85011619,2501.1,2501.0,12.854]
[1748156220596,5.85011619,2501.1,2501.0,8.615]
[1748156220807,5.85011619,2501.1,2501.0,12.855]
[1748156222295,16.33097195,2501.1,2501.0,12.855]
[1748156222469,25.70934075,2501.1,2501.0,8.615]
[1748156222666,28.10234075,2501.1,2501.0,12.855]
[1748156222985,28.10234075,2501.1,2501.0,8.615]
[1748156223172,28.10234075,2501.1,2501.0,12.855]
[1748156223359,26.17148499,2501.1,2501.0,12.855]
[1748156226722,26.17148499,2501.1,2501.0,8.615]
[1748156227130,26.17148499,2501.1,2501.0,12.855]
[1748156227585,8.55,2501.0,2500.5,8.618]
[1748156227785,8.0,2500.8,2500.6,4.24]
[1748156228127,3.989,2500.7,2500.6,4.24]
[1748156228426,4.36147661,2500.7,2500.6,4.24]
[1748156229488,4.76019489,2500.7,2500.6,4.24]
[1748156229823,7.03746389,2500.7,2500.6,4.24]
[1748156230826,7.80766389,2500.7,2500.6,4.24]
[1748156231448,15.80766389,2500.7,2500.6,4.24]
[1748156231590,0.37247661,2500.7,2500.6,5.0463]
[1748156231923,4.36147661,2500.7,2500.6,5.0463]
[1748156232286,3.989,2500.7,2500.6,5.0463]
[1748156233203,1.00660294,2501.2,2500.6,5.0463]
[1748156233406,3.989,2501.1,2500.6,5.0463]
[1748156233925,4.36069334,2501.0,2500.6,5.55093]
[1748156235206,3.989,2500.9,2500.6,5.55093]
[1748156235519,3.409814,2500.9,2500.6,5.55093]
[1748156236512,3.409814,2500.9,2500.6,5.0463]
[1748156237234,4.215314,2500.9,2500.3,0.7558]
[1748156237526,4.215314,2500.9,2500.7,4.215]
[1748156238026,0.3717171,2500.8,2500.7,4.215]
[1748156239806,0.3717171,2500.8,2500.7,5.003]
[1748156240003,3.409814,2500.9,2500.7,5.003]
[1748156240433,0.63412633,2501.2,2500.7,5.003]
[1748156240434,3.989,2500.8,2500.7,5.003]
[1748156240800,0.68411026,2501.2,2500.7,4.215]
[1748156241005,4.3692139,2501.1,2500.7,4.215]
[1748156241242,0.04998382,2501.0,2500.7,4.215]
[1748156241430,4.74104423,2501.1,2500.7,4.215]
[1748156241635,0.04998381,2501.0,2500.7,4.215]
[1748156241942,0.37183033,2500.9,2500.7,4.215]
[1748156243022,4.62312633,2501.1,2500.7,4.215]
[1748156243435,3.989,2501.0,2500.7,4.215]
[1748156244544,0.37193249,2500.9,2500.7,4.215]
[1748156245546,3.989,2501.0,2500.7,4.215]
[1748156247151,0.37196573,2500.9,2500.7,4.215]
[1748156247369,1.23575059,2500.9,2500.7,4.215]
[1748156247656,0.37196573,2500.9,2500.7,4.215]
[1748156248421,3.989,2501.0,2500.7,4.215]
[1748156248819,8.0,2500.9,2500.8,8.617]
[1748156249921,8.3720111,2500.9,2500.8,8.617]
[1748156250123,9.60811221,2500.9,2500.8,8.617]
[1748156251363,24.63043677,2500.9,2500.8,8.617]
[1748156251526,20.30658101,2500.9,2500.8,12.831]
[1748156252346,20.94070734,2500.9,2500.8,12.831]
[1748156257262,19.62060734,2500.9,2500.8,12.831]
[1748156257430,23.60960734,2500.9,2500.8,12.831]
[1748156259136,24.98870734,2500.9,2500.8,12.832]
[1748156260541,24.35458101,2500.9,2500.8,12.832]
[1748156261268,30.94558101,2500.9,2500.8,8.617]
[1748156261440,30.94558101,2500.9,2500.8,12.832]
[1748156264066,26.74858101,2500.9,2500.8,12.832]
[1748156265577,28.34992659,2500.9,2500.8,12.832]
[1748156266377,15.34172548,2500.9,2500.8,4.208]
[1748156266742,23.34172548,2500.9,2500.8,4.208]
[1748156267052,15.34172548,2500.9,2500.8,4.208]
[1748156267237,23.34172548,2500.9,2500.8,4.208]
[1748156267438,11.98634183,2500.9,2500.8,4.208]
[1748156267669,15.97634183,2500.9,2500.8,4.208]
[1748156268156,11.98634183,2500.9,2500.8,4.208]
[1748156268358,15.97634183,2500.9,2500.8,4.208]
[1748156268664,15.34172548,2500.9,2500.8,4.208]
[1748156268869,19.22093049,2500.9,2500.8,4.208]
[1748156270255,17.34979073,2500.9,2500.8,4.208]
[1748156270778,13.35979073,2500.9,2500.8,4.208]
[1748156270977,17.34979073,2500.9,2500.8,4.208]
[1748156272285,13.7403799,2500.9,2500.8,4.9702]
[1748156272945,13.3683688,2500.9,2500.8,4.9702]
[1748156273946,0.63461635,2501.2,2500.9,0.7622]
[1748156274250,0.40087299,2501.3,2500.9,1.25922]
[1748156274251,0.63461635,2501.3,2500.9,1.25922]
[1748156274462,3.99,2501.2,2500.9,1.25922]
[1748156274875,0.37199301,2501.1,2500.9,1.25922]
[1748156275395,3.99,2501.0,2500.9,1.25922]
[1748156277667,3.99,2501.0,2500.8,4.208]
[1748156280998,3.989,2500.9,2500.8,4.208]
[1748156282774,0.37167215,2501.2,2500.9,0.7833]
[1748156282980,3.989,2501.1,2500.9,0.7833]
[1748156283282,0.37167215,2501.2,2500.9,0.7833]
[1748156283456,3.989,2501.0,2500.9,0.7833]
[1748156296092,0.8105,2501.6,2500.9,0.7833]
[1748156296295,3.989,2501.5,2500.9,0.7833]
[1748156296599,0.37180515,2501.4,2500.9,0.7833]
[1748156297581,3.989,2501.5,2500.9,0.7833]
[1748156297903,3.989,2501.5,2501.0,8.616]
[1748156299221,8.37205812,2501.4,2501.0,8.616]
[1748156300122,8.0,2501.4,2501.0,8.616]
[1748156301888,0.37230174,2501.3,2501.0,8.616]
[1748156302623,0.37230174,2501.3,2501.1,4.206]
[1748156302829,0.63461635,2501.6,2501.1,5.08633138]
[1748156303122,3.988,2501.5,2501.1,5.08633138]
[1748156303504,0.37250808,2501.4,2501.1,5.08633138]
[1748156304324,3.988,2501.5,2501.1,5.08633138]
[1748156306398,0.37260491,2501.4,2501.1,5.08633138]
[1748156306986,0.37260491,2501.4,2501.0,8.616]
[1748156307186,0.37260491,2501.4,2501.1,4.206]
[1748156307416,0.37260491,2501.3,2501.1,4.206]
[1748156308321,4.8106,2501.5,2501.1,4.206]
[1748156308836,3.988,2501.5,2501.1,4.206]
[1748156309123,0.37270065,2501.4,2501.2,8.615]
[1748156309825,3.988,2501.5,2501.2,8.615]
[1748156311825,0.3728159,2501.4,2501.2,8.615]
[1748156312930,3.988,2501.5,2501.2,8.615]
[1748156313931,3.988,2501.5,2501.3,4.205]
[1748156314321,0.63461635,2501.7,2501.3,4.9931]
[1748156314502,3.988,2501.6,2501.3,4.9931]
[1748156314707,0.63461635,2501.7,2501.3,4.9931]
[1748156314926,3.988,2501.6,2501.3,4.9931]
[1748156315130,4.36079794,2501.6,2501.3,4.9931]
[1748156315536,0.37279794,2501.6,2501.3,4.9931]
[1748156315741,0.37279794,2501.6,2501.3,4.205]
[1748156315913,3.988,2501.5,2501.4,0.7881]
[1748156321612,0.37228605,2502.0,2501.4,0.7881]
[1748156321814,3.988,2501.9,2501.4,0.7881]
[1748156330553,1.41501635,2502.3,2501.4,0.7881]
[1748156330852,3.988,2502.2,2501.5,0.69239558]
[1748156331215,0.37216916,2502.1,2501.5,0.69239558]
[1748156331952,0.37216916,2502.0,2501.5,0.69239558]
[1748156332952,3.988,2502.2,2501.6,0.7826]
[1748156333553,0.37222672,2502.1,2501.6,0.7826]
[1748156334867,0.37222672,2502.0,2501.6,0.7826]
[1748156335365,0.37222672,2502.0,2501.7,8.614]
[1748156335657,3.988,2501.9,2501.7,9.3010658]
[1748156335871,1.41501635,2502.3,2501.7,9.3010658]
[1748156336174,3.988,2502.2,2501.8,0.8294]
[1748156336320,3.988,2502.1,2501.8,0.8294]
[1748156336521,3.988,2502.0,2501.8,0.8294]
[1748156336747,9.3783688,2502.4,2502.0,0.8294]
[1748156336956,3.988,2502.3,2502.1,4.203]
[1748156337352,3.988,2502.2,2502.1,4.203]
[1748156338171,0.37218494,2502.5,2502.1,4.203]
[1748156338374,3.987,2502.4,2502.1,4.203]
[1748156338553,3.987,2502.3,2502.1,4.203]
[1748156338747,3.987,2502.3,2502.1,4.77547956]
[1748156340152,0.4220741,2502.8,2502.1,4.77547956]
[1748156340511,0.8184,2502.6,2502.0,0.8294]
[1748156340655,0.8184,2502.6,2502.2,4.203]
[1748156341014,0.37212305,2502.5,2502.2,4.203]
[1748156341904,0.8184,2502.6,2502.2,4.203]
[1748156342206,0.48054,2502.5,2502.2,4.203]
[1748156342415,0.8184,2502.6,2502.2,4.203]
[1748156343302,4.35916544,2502.5,2502.2,4.203]
[1748156344097,3.987,2502.5,2502.2,4.203]
[1748156345101,3.987,2502.5,2502.3,8.612]
[1748156347798,0.8093,2502.8,2502.3,8.612]
[1748156347964,5.11337641,2502.7,2502.3,8.612]
[1748156348629,0.8093,2502.8,2502.3,8.612]